fUST/lending_fUST_20250801
["ID","MTS","AMOUNT","RATE_DAILY","PERIOD"]
[376509958,1754001047731,-460.0,0.00020273,2]
[376509959,1754001047740,-1487.82,0.00020273,2]
[376509960,1754001047749,-460.0,0.00020273,2]
[376509961,1754001047758,-490.7,0.00020273,2]
[376509962,1754001047768,-732.05,0.00020273,2]
[376509963,1754001047777,-677.22,0.00020273,2]
[376509964,1754001047787,-460.0,0.00020273,2]
[376509965,1754001047796,-545.21,0.00020273,2]
[376509966,1754001047806,-4531.52,0.00020273,2]
[376509967,1754001047816,-460.0,0.00020273,2]
[376509968,1754001047825,-510.42,0.00020273,2]
[376509969,1754001047834,-630.02,0.00020273,2]
[376509970,1754001047843,-1274.85,0.00020273,2]
[376509971,1754001047853,-1350.49,0.00020273,2]
[376509972,1754001047863,-460.0,0.00020273,2]
[376509973,1754001047872,-702.17,0.00020273,2]
[376509974,1754001047882,-460.0,0.00020273,2]
[376509975,1754001047891,-581.87,0.00020273,2]
[376509976,1754001047900,-460.0,0.00020273,2]
[376509977,1754001047910,-532.91,0.00020273,2]
[376509978,1754001047919,-1069.6,0.00020273,2]
[376509979,1754001047929,-907.56,0.00020273,2]
[376509980,1754001047938,-520.59,0.00020273,2]
[376509981,1754001047947,-460.0,0.00020273,2]
[376509982,1754001047957,-460.0,0.00020273,2]
[376509983,1754001047966,-703.74,0.00020273,2]
[376509984,1754001047975,-460.0,0.00020273,2]
[376509985,1754001047984,-460.0,0.00020273,2]
[376509986,1754001047994,-1480.42,0.00020273,2]
[376509987,1754001048003,-641.92,0.00020273,2]
[376509988,1754001048012,-514.71,0.00020273,2]
[376509989,1754001048022,-507.71,0.00020273,2]
[376509990,1754001048031,-472.12,0.00020273,2]
[376509991,1754001048040,-733.84,0.00020273,2]
[376509992,1754001048050,-1485.72,0.00020273,2]
[376509993,1754001048059,-1813.57,0.00020273,2]
[376509994,1754001048068,-2690.21,0.00020273,2]
[376509995,1754001048078,-460.0,0.00020273,2]
[376509996,1754001048087,-1083.09,0.00020273,2]
[376509997,1754001048096,-2157.6,0.00020273,2]
[376509998,1754001048106,-471.03,0.00020273,2]
[376509999,1754001048116,-1172.01,0.00020273,2]
[376510000,1754001048126,-1004.76261434,0.00020286,2]
[376510001,1754001048135,-2159.0,0.0002045,2]
[376510002,1754001048145,-425.682,0.0002045,2]
[376510003,1754001048155,-970.0,0.0002045,2]
[376510004,1754001048167,-641.8,0.00020489,3]
[376510005,1754001048177,-500.0,0.00020546,2]
[376510006,1754001048186,-1001.21696077,0.00020546,2]
[376510007,1754001048198,-1001.21696077,0.00020546,2]
[376510008,1754001048214,-444.45422741,0.00020546,2]
[376510009,1754001048224,-1001.21696077,0.00020546,2]
[376510010,1754001048233,-1001.21696077,0.00020546,2]
[376510011,1754001048243,-1001.21696077,0.00020546,2]
[376510012,1754001048254,-1001.21696077,0.00020546,2]
[376510013,1754001048263,-1001.21696077,0.00020546,2]
[376510014,1754001048273,-1001.21696077,0.00020546,2]
[376510015,1754001048285,-1001.21696077,0.00020546,2]
[376510016,1754001048295,-1001.21696077,0.00020546,2]
[376510017,1754001048306,-1001.21696077,0.00020546,2]
[376510018,1754001048316,-1001.21696077,0.00020546,2]
[376510019,1754001048327,-1001.21696077,0.00020546,2]
[376510020,1754001048337,-1001.21696077,0.00020546,2]
[376510021,1754001048347,-1001.21696077,0.00020546,2]
[376510022,1754001048357,-1001.21696077,0.00020546,2]
[376510023,1754001048367,-1001.21696077,0.00020546,2]
[376510024,1754001048380,-1021.24129999,0.00020546,2]
[376510025,1754001048390,-1034.47961314,0.00020546,2]
[376510026,1754001048400,-1034.47961314,0.00020546,2]
[376510027,1754001048409,-1034.47961314,0.00020546,2]
[376510028,1754001048419,-1034.47961314,0.00020546,2]
[376510029,1754001048429,-1034.47961314,0.00020546,2]
[376510030,1754001048439,-1034.47961314,0.00020546,2]
[376510031,1754001048449,-1057.99051346,0.00020546,2]
[376510032,1754001048458,-1057.99051346,0.00020546,2]
[376510033,1754001048468,-500.0,0.00020546,2]
[376510034,1754001048477,-460.0,0.00020547,2]
[376510035,1754001048487,-460.0,0.00020547,2]
[376510036,1754001048496,-646.43,0.00020547,2]
[376510037,1754001048506,-460.0,0.00020547,2]
[376510038,1754001048515,-460.0,0.00020547,2]
[376510039,1754001048524,-460.0,0.00020547,2]
[376510040,1754001048533,-4479.21,0.00020547,2]
[376510041,1754001048543,-460.0,0.00020547,2]
[376510042,1754001048553,-460.0,0.00020547,2]
[376510043,1754001048562,-460.0,0.00020547,2]
[376510044,1754001048572,-531.57,0.00020547,2]
[376510045,1754001048583,-460.0,0.00020547,2]
[376510046,1754001048592,-460.38,0.00020547,2]
[376510047,1754001048601,-460.0,0.00020547,2]
[376510048,1754001048610,-460.0,0.00020547,2]
[376510049,1754001048621,-460.0,0.00020547,2]
[376510050,1754001048631,-1487.82,0.00020547,2]
[376510051,1754001048640,-460.0,0.00020547,2]
[376510052,1754001048649,-490.7,0.00020547,2]
[376510053,1754001048659,-732.05,0.00020547,2]
[376510054,1754001048668,-677.22,0.00020547,2]
[376510055,1754001048677,-460.0,0.00020547,2]
[376510056,1754001048687,-545.21,0.00020547,2]
[376510057,1754001048696,-4531.52,0.00020547,2]
[376510058,1754001048705,-460.0,0.00020547,2]
[376510059,1754001048714,-510.42,0.00020547,2]
[376510060,1754001048724,-630.02,0.00020547,2]
[376510061,1754001048733,-1274.85,0.00020547,2]
[376510062,1754001048742,-1350.49,0.00020547,2]
[376510063,1754001048752,-460.0,0.00020547,2]
[376510064,1754001048761,-702.17,0.00020547,2]
[376510065,1754001048770,-460.0,0.00020547,2]
[376510066,1754001048780,-581.87,0.00020547,2]
[376510067,1754001048789,-460.0,0.00020547,2]
[376510068,1754001048799,-532.91,0.00020547,2]
[376510069,1754001048808,-1069.6,0.00020547,2]
[376510070,1754001048817,-907.56,0.00020547,2]
[376510071,1754001048826,-520.59,0.00020547,2]
[376510072,1754001048835,-460.0,0.00020547,2]
[376510073,1754001048844,-460.0,0.00020547,2]
[376510074,1754001048854,-703.74,0.00020547,2]
[376510075,1754001048863,-460.0,0.00020547,2]
[376510076,1754001048873,-460.0,0.00020547,2]
[376510077,1754001048883,-1480.42,0.00020547,2]
[376510078,1754001048892,-641.92,0.00020547,2]
[376510079,1754001048902,-514.71,0.00020547,2]
[376510080,1754001048911,-507.71,0.00020547,2]
[376510081,1754001048920,-472.12,0.00020547,2]
[376510082,1754001048930,-733.84,0.00020547,2]
[376510083,1754001048941,-1485.72,0.00020547,2]
[376510084,1754001048950,-1813.57,0.00020547,2]
[376510085,1754001048959,-2690.21,0.00020547,2]
[376510086,1754001048968,-460.0,0.00020547,2]
[376510087,1754001048977,-1083.09,0.00020547,2]
[376510088,1754001048986,-2157.6,0.00020547,2]
[376510089,1754001048996,-471.03,0.00020547,2]
[376510090,1754001049005,-1172.01,0.00020547,2]
[376510091,1754001049014,-800.0,0.00020551,2]
[376510092,1754001049024,-1500.0,0.00020568,2]
[376510093,1754001049033,-1500.0,0.00020568,2]
[376510094,1754001049043,-500.0,0.00020573,2]
[376510095,1754001049052,-500.0,0.00020573,2]
[376510096,1754001049062,-500.0,0.00020573,2]
[376510097,1754001049072,-500.0,0.00020573,2]
[376510098,1754001049081,-500.0,0.00020573,2]
[376510099,1754001049090,-500.0,0.00020573,2]
[376510100,1754001049100,-500.0,0.00020573,2]
[376510101,1754001049109,-151.0,0.00020573,2]
[376510102,1754001049119,-151.0,0.00020573,2]
[376510103,1754001049128,-151.0,0.00020573,2]
[376510104,1754001049138,-151.0,0.00020573,2]
[376510105,1754001049147,-151.0,0.00020573,2]
[376510106,1754001049156,-781.83665124,0.00020585,2]
[376510107,1754001049166,-460.0,0.00020821,2]
[376510108,1754001049176,-460.0,0.00020821,2]
[376510109,1754001049186,-646.43,0.00020821,2]
[376510110,1754001049196,-460.0,0.00020821,2]
[376510111,1754001049209,-460.0,0.00020821,2]
[376510112,1754001049219,-151.0,0.00020821,2]
[376510113,1754001049228,-460.0,0.00020821,2]
[376510114,1754001049238,-2196.1065801,0.00020821,2]
[376510121,1754001565395,1000.0,0.00018185,2]
[376510123,1754001674328,339.374837,0.00013699,2]
[376510125,1754001820194,8740.0,0.00018185,2]
[376510126,1754002002016,22107.1288907,0.00018176,2]
[376510188,1754002232734,-212.65942431,0.000189,2]
[376510191,1754002232744,-224.68101151,0.00019078,2]
[376510193,1754002232754,-1158.5466632,0.00019078,2]
[376510195,1754002232763,-525.88547756,0.00019105,2]
[376510197,1754002232773,-300.0,0.00019172,2]
[376510199,1754002232782,-622.75820574,0.00019173,2]
[376510201,1754002232791,-500.0,0.00019173,2]
[376510203,1754002232800,-460.72682328,0.00019173,2]
[376510205,1754002232809,-496.60693576,0.00019173,2]
[376510207,1754002232819,-500.0,0.00019173,2]
[376510209,1754002232828,-500.0,0.00019173,2]
[376510211,1754002232837,-539.4923896,0.00019173,2]
[376510213,1754002232847,-500.0,0.00019173,2]
[376510215,1754002232856,-500.0,0.00019173,2]
[376510217,1754002232865,-500.0,0.00019173,2]
[376510219,1754002232874,-15821.46927174,0.00019173,2]
[376510222,1754002232890,-5000.059232,0.00019173,2]
[376510361,1754002240643,-463.13746388,0.00019173,2]
[376510364,1754002240656,-1054.02318485,0.00019173,2]
[376510366,1754002240667,-670.72488051,0.00019173,2]
[376510369,1754002240683,-370.4,0.00019173,2]
[376510484,1754002241775,-150.0,0.000189,2]
[376510486,1754002241785,-8609.97393036,0.00019173,2]
[376510488,1754002241797,-18010.21203666,0.00019173,2]
[376510490,1754002241806,-1971.87271084,0.00019178,2]
[376510507,1754002241816,-460.0,0.00019178,2]
[376510515,1754002242026,-460.0,0.00019178,2]
[376510517,1754002242036,-460.0,0.00019178,2]
[376510519,1754002242045,-791.27,0.00019178,2]
[376510521,1754002242055,-550.90315727,0.00019178,2]
[376510523,1754002242064,-460.0,0.00019178,2]
[376510525,1754002242075,-460.0,0.00019178,2]
[376510527,1754002242084,-460.0,0.00019178,2]
[376510529,1754002242093,-460.0,0.00019178,2]
[376510531,1754002242103,-401.29539484,0.00019178,2]
[376510533,1754002242112,-460.0,0.00019178,2]
[376510535,1754002242121,-460.0,0.00019178,2]
[376510537,1754002242131,-460.0,0.00019178,2]
[376510539,1754002242140,-460.0,0.00019178,2]
[376510541,1754002242149,-460.0,0.00019178,2]
[376510543,1754002242158,-460.0,0.00019178,2]
[376510545,1754002242168,-460.0,0.00019178,2]
[376510547,1754002242177,-460.0,0.00019178,2]
[376510549,1754002242186,-460.0,0.00019178,2]
[376510551,1754002242195,-460.0,0.00019178,2]
[376510553,1754002242204,-460.0,0.00019178,2]
[376510555,1754002242214,-460.0,0.00019178,2]
[376510557,1754002242223,-460.0,0.00019178,2]
[376510559,1754002242232,-462.00586785,0.00019178,2]
[376510561,1754002242241,-460.0,0.00019178,2]
[376510563,1754002242251,-460.0,0.00019178,2]
[376510565,1754002242260,-460.0,0.00019178,2]
[376510567,1754002242269,-460.0,0.00019178,2]
[376510569,1754002242278,-460.0,0.00019178,2]
[376510571,1754002242287,-462.76921222,0.00019178,2]
[376510573,1754002242297,-460.0,0.00019178,2]
[376510574,1754002242306,-460.0,0.00019178,2]
[376510576,1754002242315,-530.89768583,0.00019178,2]
[376510578,1754002242326,-460.0,0.00019178,2]
[376510580,1754002242335,-460.0,0.00019178,2]
[376510582,1754002242344,-460.0,0.00019178,2]
[376510584,1754002242354,-460.0,0.00019178,2]
[376510586,1754002242363,-169.78311318,0.00019178,2]
[376510588,1754002242372,-460.0,0.00019178,2]
[376510590,1754002242381,-461.1141798,0.00019178,2]
[376510592,1754002242391,-460.0,0.00019178,2]
[376510594,1754002242400,-460.0,0.00019178,2]
[376510596,1754002242410,-460.0,0.00019178,2]
[376510598,1754002242419,-460.0,0.00019178,2]
[376510600,1754002242429,-460.0,0.00019178,2]
[376510602,1754002242439,-460.0,0.00019178,2]
[376510605,1754002242449,-460.0,0.00019178,2]
[376510607,1754002242460,-460.0,0.00019178,2]
[376510609,1754002242469,-460.0,0.00019178,2]
[376510611,1754002242478,-460.0,0.00019178,2]
[376510613,1754002242488,-460.0,0.00019178,2]
[376510615,1754002242498,-460.0,0.00019178,2]
[376510617,1754002242507,-460.0,0.00019178,2]
[376510619,1754002242517,-460.0,0.00019178,2]
[376510621,1754002242527,-186.91179572,0.00019178,2]
[376510623,1754002242540,-460.0,0.00019178,2]
[376510625,1754002242550,-460.0,0.00019178,2]
[376510627,1754002242559,-460.0,0.00019178,2]
[376510629,1754002242569,-460.0,0.00019178,2]
[376510631,1754002242578,-463.50797996,0.00019178,2]
[376510633,1754002242588,-460.0,0.00019178,2]
[376510635,1754002242598,-460.0,0.00019178,2]
[376510637,1754002242609,-552.43970557,0.00019178,2]
[376510639,1754002242618,-460.0,0.00019178,2]
[376510641,1754002242628,-460.0,0.00019178,2]
[376510643,1754002242638,-460.0,0.00019178,2]
[376510645,1754002242648,-460.0,0.00019178,2]
[376510647,1754002242657,-460.0,0.00019178,2]
[376510649,1754002242667,-461.39743721,0.00019178,2]
[376510651,1754002242677,-461.24174446,0.00019178,2]
[376510653,1754002242686,-460.0,0.00019178,2]
[376510655,1754002242696,-460.0,0.00019178,2]
[376510657,1754002242705,-460.0,0.00019178,2]
[376510659,1754002242714,-460.0,0.00019178,2]
[376510661,1754002242723,-460.0,0.00019178,2]
[376510663,1754002242735,-478.21,0.00019178,2]
[376510665,1754002242744,-460.0,0.00019178,2]
[376510667,1754002242753,-460.0,0.00019178,2]
[376510669,1754002242763,-438.6761521,0.00019178,2]
[376510671,1754002242772,-460.0,0.00019178,2]
[376510673,1754002242782,-460.0,0.00019178,2]
[376510675,1754002242791,-460.0,0.00019178,2]
[376510677,1754002242800,-460.0,0.00019178,2]
[376510679,1754002242810,-460.0,0.00019178,2]
[376510681,1754002242819,-460.0,0.00019178,2]
[376510683,1754002242828,-460.0,0.00019178,2]
[376510685,1754002242837,-237.14663343,0.00019178,2]
[376510897,1754002245005,-222.85336657,0.00019178,2]
[376510899,1754002245015,-253.21699365,0.00019178,2]
[376510903,1754002245040,-573.42205837,0.00019178,2]
[376511702,1754002640637,1000.0,0.00018178,2]
[376511703,1754002791122,341.705542,0.00013699,2]
[376511705,1754002985843,310.0296672,0.00018178,2]
[376511810,1754003432966,-169.99605194,0.000189,2]
[376511812,1754003432977,-555.20084012,0.00019078,2]
[376511814,1754003432988,-275.63,0.00019168,3]
[376511816,1754003432999,-826.93,0.00019168,3]
[376511818,1754003433010,-300.0,0.00019172,2]
[376511820,1754003433021,-500.0,0.00019173,2]
[376511822,1754003433031,-500.0,0.00019173,2]
[376511825,1754003433043,-500.0,0.00019173,2]
[376511827,1754003433054,-500.0,0.00019173,2]
[376511829,1754003433064,-500.0,0.00019173,2]
[376511830,1754003433075,-500.0,0.00019173,2]
[376511832,1754003433090,-496.67276832,0.00019173,2]
[376511835,1754003433102,-16021.67523668,0.00019173,2]
[376511837,1754003433120,-609.06452349,0.00019173,2]
[376512308,1754003440780,-3940.32236836,0.00019173,2]
[376512310,1754003440792,-11855.64401712,0.00019173,2]
[376512312,1754003440804,-267.09860424,0.00019173,2]
[376512323,1754003440905,-739.59973719,0.00019173,2]
[376512325,1754003440914,-594.72456685,0.00019178,2]
[376512327,1754003440925,-602.51497101,0.00019178,2]
[376512329,1754003440934,-460.0,0.00019178,2]
[376512331,1754003440944,-460.0,0.00019178,2]
[376512333,1754003440953,-460.0,0.00019178,2]
[376512335,1754003440962,-460.0,0.00019178,2]
[376512336,1754003440972,-460.0,0.00019178,2]
[376512337,1754003440983,-460.0,0.00019178,2]
[376512338,1754003440992,-373.46,0.00019178,2]
[376512339,1754003441002,-460.0,0.00019178,2]
[376512340,1754003441011,-460.0,0.00019178,2]
[376512341,1754003441020,-462.08266192,0.00019178,2]
[376512342,1754003441029,-460.0,0.00019178,2]
[376512343,1754003441038,-500.0,0.00019178,2]
[376512344,1754003441047,-374.99830761,0.00019178,2]
[376512345,1754003441056,-460.0,0.00019178,2]
[376512346,1754003441066,-460.0,0.00019178,2]
[376512347,1754003441076,-460.0,0.00019178,2]
[376512348,1754003441085,-460.0,0.00019178,2]
[376512349,1754003441094,-529.23843928,0.00019178,2]
[376512351,1754003441104,-460.0,0.00019178,2]
[376512353,1754003441113,-460.0,0.00019178,2]
[376512355,1754003441122,-460.0,0.00019178,2]
[376512357,1754003441131,-460.0,0.00019178,2]
[376512359,1754003441140,-460.0,0.00019178,2]
[376512361,1754003441149,-460.0,0.00019178,2]
[376512363,1754003441159,-460.0,0.00019178,2]
[376512365,1754003441167,-460.0,0.00019178,2]
[376512367,1754003441177,-460.0,0.00019178,2]
[376512369,1754003441186,-262.10867834,0.00019178,2]
[376512371,1754003441195,-453.1717647,0.00019178,2]
[376512373,1754003441204,-460.0,0.00019178,2]
[376512375,1754003441214,-460.0,0.00019178,2]
[376512377,1754003441223,-460.0,0.00019178,2]
[376512379,1754003441233,-460.0,0.00019178,2]
[376512381,1754003441243,-460.0,0.00019178,2]
[376512383,1754003441252,-460.0,0.00019178,2]
[376512385,1754003441261,-460.0,0.00019178,2]
[376512387,1754003441270,-460.0,0.00019178,2]
[376512389,1754003441279,-460.0,0.00019178,2]
[376512391,1754003441289,-460.0,0.00019178,2]
[376512393,1754003441298,-460.0,0.00019178,2]
[376512395,1754003441307,-3585.35,0.00019178,2]
[376512396,1754003441316,-460.0,0.00019178,2]
[376512397,1754003441325,-236.0456056,0.00019178,2]
[376512398,1754003441335,-460.0,0.00019178,2]
[376512400,1754003441344,-570.3408075,0.00019178,2]
[376512402,1754003441353,-460.0,0.00019178,2]
[376512404,1754003441362,-460.0,0.00019178,2]
[376512406,1754003441372,-460.0,0.00019178,2]
[376512408,1754003441381,-1266.97,0.00019178,2]
[376512410,1754003441390,-460.0,0.00019178,2]
[376512412,1754003441399,-460.0,0.00019178,2]
[376512414,1754003441409,-501.54383892,0.00019178,2]
[376512416,1754003441418,-460.0,0.00019178,2]
[376512418,1754003441428,-460.0,0.00019178,2]
[376512420,1754003441437,-460.0,0.00019178,2]
[376512422,1754003441447,-460.0,0.00019178,2]
[376512424,1754003441456,-460.0,0.00019178,2]
[376512426,1754003441465,-460.0,0.00019178,2]
[376512428,1754003441475,-460.0,0.00019178,2]
[376512430,1754003441485,-460.0,0.00019178,2]
[376512432,1754003441495,-460.0,0.00019178,2]
[376512434,1754003441505,-460.0,0.00019178,2]
[376512436,1754003441514,-460.0,0.00019178,2]
[376512438,1754003441523,-460.0,0.00019178,2]
[376512440,1754003441533,-460.0,0.00019178,2]
[376512442,1754003441543,-460.0,0.00019178,2]
[376512444,1754003441553,-460.0,0.00019178,2]
[376512446,1754003441563,-271.36092719,0.00019178,2]
[376512448,1754003441571,-460.0,0.00019178,2]
[376512450,1754003441581,-530.77577165,0.00019178,2]
[376512452,1754003441591,-460.0,0.00019178,2]
[376512454,1754003441602,-460.0,0.00019178,2]
[376512456,1754003441611,-391.33105799,0.00019178,2]
[376512458,1754003441621,-460.0,0.00019178,2]
[376512460,1754003441630,-166.9578826,0.00019178,2]
[376512462,1754003441639,-460.0,0.00019178,2]
[376512464,1754003441648,-460.0,0.00019178,2]
[376512466,1754003441657,-502.84,0.00019178,2]
[376512468,1754003441667,-443.14749529,0.00019178,2]
[376512470,1754003441676,-460.0,0.00019178,2]
[376512472,1754003441685,-394.30047243,0.00019178,2]
[376512474,1754003441694,-244.65884837,0.00019178,2]
[376512476,1754003441704,-460.0,0.00019178,2]
[376512478,1754003441713,-460.0,0.00019178,2]
[376512480,1754003441723,-460.0,0.00019178,2]
[376512482,1754003441734,-460.0,0.00019178,2]
[376512484,1754003441743,-460.0,0.00019178,2]
[376512486,1754003441753,-460.0,0.00019178,2]
[376512488,1754003441761,-335.22830016,0.00019178,2]
[376512490,1754003441771,-460.0,0.00019178,2]
[376512492,1754003441780,-460.0,0.00019178,2]
[376512494,1754003441789,-460.0,0.00019178,2]
[376512496,1754003441798,-460.0,0.00019178,2]
[376512498,1754003441808,-280.0,0.00019178,2]
[376512500,1754003441817,-460.0,0.00019178,2]
[376512502,1754003441826,-468.3047195,0.00019178,2]
[376512504,1754003441836,-460.0,0.00019178,2]
[376512506,1754003441845,-460.0,0.00019178,2]
[376512507,1754003441854,-460.0,0.00019178,2]
[376512509,1754003441863,-460.0,0.00019178,2]
[376512512,1754003441877,-460.0,0.00019178,2]
[376512513,1754003441886,-603.96312297,0.00019178,2]
[376512516,1754003441896,-1479.37934492,0.00019178,2]
[376512605,1754003444628,-328.97065508,0.00019178,2]
[376512606,1754003444637,-460.0,0.00019178,2]
[376512607,1754003444647,-460.0,0.00019178,2]
[376512608,1754003444656,-460.0,0.00019178,2]
[376512609,1754003444665,-47.11060227,0.00019178,2]
[376512610,1754003444677,-412.88939773,0.00019178,2]
[376512611,1754003444686,-460.0,0.00019178,2]
[376512612,1754003444695,-460.0,0.00019178,2]
[376512613,1754003444705,-460.0,0.00019178,2]
[376512615,1754003444715,-460.0,0.00019178,2]
[376512616,1754003444725,-460.0,0.00019178,2]
[376512617,1754003444746,-460.0,0.00019178,2]
[376512618,1754003444756,-460.0,0.00019178,2]
[376512619,1754003444766,-460.0,0.00019178,2]
[376512620,1754003444776,-460.0,0.00019178,2]
[376512621,1754003444785,-460.0,0.00019178,2]
[376512622,1754003444795,-460.0,0.00019178,2]
[376512623,1754003444804,-460.0,0.00019178,2]
[376512624,1754003444813,-460.0,0.00019178,2]
[376512625,1754003444823,-460.0,0.00019178,2]
[376512626,1754003444833,-460.0,0.00019178,2]
[376512627,1754003444843,-437.04665751,0.00019178,2]
[376512628,1754003444852,-460.0,0.00019178,2]
[376512629,1754003444862,-460.0,0.00019178,2]
[376512630,1754003444872,-460.0,0.00019178,2]
[376512631,1754003444885,-462.57,0.00019178,2]
[376512632,1754003444895,-460.0,0.00019178,2]
[376512633,1754003444905,-460.0,0.00019178,2]
[376512634,1754003444917,-460.0,0.00019178,2]
[376512635,1754003444926,-460.0,0.00019178,2]
[376512636,1754003444936,-460.0,0.00019178,2]
[376512637,1754003444945,-460.0,0.00019178,2]
[376512638,1754003444957,-460.0,0.00019178,2]
[376512639,1754003444968,-466.25740233,0.00019178,2]
[376512640,1754003444979,-460.0,0.00019178,2]
[376512641,1754003444988,-460.0,0.00019178,2]
[376512642,1754003444998,-206.14,0.00019178,2]
[376512643,1754003445008,-460.0,0.00019178,2]
[376512644,1754003445018,-305.85675955,0.00019178,2]
[376512645,1754003445027,-460.0,0.00019178,2]
[376512646,1754003445037,-460.0,0.00019178,2]
[376512647,1754003445046,-460.0,0.00019178,2]
[376512648,1754003445055,-523.66908165,0.00019178,2]
[376512649,1754003445065,-460.0,0.00019178,2]
[376512650,1754003445074,-460.0,0.00019178,2]
[376512651,1754003445084,-1017.0,0.00019178,2]
[376512652,1754003445093,-460.0,0.00019178,2]
[376512653,1754003445102,-460.0,0.00019178,2]
[376512654,1754003445113,-460.0,0.00019178,2]
[376512655,1754003445122,-478.58,0.00019178,2]
[376512656,1754003445132,-460.0,0.00019178,2]
[376512657,1754003445141,-549.66444173,0.00019178,2]
[376512658,1754003445151,-460.0,0.00019178,2]
[376512659,1754003445160,-460.0,0.00019178,2]
[376512660,1754003445169,-460.0,0.00019178,2]
[376512661,1754003445179,-582.11,0.00019178,2]
[376512662,1754003445188,-460.0,0.00019178,2]
[376512663,1754003445197,-460.0,0.00019178,2]
[376512664,1754003445207,-460.0,0.00019178,2]
[376512665,1754003445216,-589.92,0.00019178,2]
[376512666,1754003445226,-460.0,0.00019178,2]
[376512667,1754003445237,-460.0,0.00019178,2]
[376512668,1754003445246,-2002.44,0.00019178,2]
[376512669,1754003445255,-460.0,0.00019178,2]
[376512670,1754003445264,-460.0,0.00019178,2]
[376512671,1754003445274,-460.0,0.00019178,2]
[376512672,1754003445284,-460.0,0.00019178,2]
[376512673,1754003445293,-460.0,0.00019178,2]
[376512674,1754003445304,-460.0,0.00019178,2]
[376512675,1754003445324,-460.0,0.00019178,2]
[376512676,1754003445333,-460.0,0.00019178,2]
[376512677,1754003445343,-460.0,0.00019178,2]
[376512678,1754003445352,-460.0,0.00019178,2]
[376512679,1754003445362,-1075.79,0.00019178,2]
[376512680,1754003445371,-500.0,0.00019178,2]
[376512681,1754003445385,-500.0,0.00019178,2]
[376512682,1754003445395,-500.0,0.00019178,2]
[376512683,1754003445405,-500.0,0.00019178,2]
[376512684,1754003445415,-460.0,0.00019178,2]
[376512685,1754003445424,-460.0,0.00019178,2]
[376512686,1754003445440,-529.38,0.00019178,2]
[376512687,1754003445450,-469.04,0.00019178,2]
[376512688,1754003445460,-460.0,0.00019178,2]
[376512689,1754003445469,-746.47,0.00019178,2]
[376512690,1754003445479,-460.0,0.00019178,2]
[376512691,1754003445488,-460.0,0.00019178,2]
[376512692,1754003445498,-460.0,0.00019178,2]
[376512693,1754003445508,-545.42,0.00019178,2]
[376512694,1754003445517,-460.0,0.00019178,2]
[376512695,1754003445527,-460.0,0.00019178,2]
[376512696,1754003445536,-460.81455457,0.00019178,2]
[376512697,1754003445546,-634.35,0.00019178,2]
[376512698,1754003445555,-1276.49,0.00019178,2]
[376512699,1754003445564,-460.0,0.00019178,2]
[376512700,1754003445574,-460.0,0.00019178,2]
[376512701,1754003445584,-460.0,0.00019178,2]
[376512702,1754003445594,-460.0,0.00019178,2]
[376512703,1754003445603,-460.0,0.00019178,2]